bitfinex/quotes_BTCUSD_20251208
["timestamp","ask_amount","ask_price","bid_price","bid_amount"]
[1765174831482,0.00923,91425.0,91423.0,0.72969935]
[1765174831704,0.00923,91425.0,91423.0,0.72981634]
[1765174831892,0.02187621,91433.0,91430.0,0.2296839]
[1765174832365,0.02187621,91433.0,91423.0,0.51105515]
[1765174832366,0.00923,91424.0,91423.0,0.50011699]
[1765174832551,0.00923,91424.0,91423.0,0.71888032]
[1765174832754,0.00923,91424.0,91423.0,0.71988032]
[1765174834023,0.00923,91424.0,91423.0,0.71888032]
[1765174834248,0.01724,91434.0,91432.0,0.21874177]
[1765174834435,0.02187621,91433.0,91431.0,0.0109372]
[1765174834645,0.01572,91432.0,91431.0,0.0109372]
[1765174834871,0.01572,91432.0,91428.0,0.01093756]
[1765174835074,0.02665708,91432.0,91428.0,0.01093756]
[1765174835208,0.01572,91429.0,91428.0,0.01093756]
[1765174836931,0.01572,91429.0,91428.0,0.01393756]
[1765174837549,0.00923,91433.0,91431.0,0.21874241]
[1765174837801,0.03110621,91433.0,91431.0,0.21874241]
[1765174838008,0.01572,91432.0,91430.0,0.01093732]
[1765174838219,0.01572,91432.0,91431.0,0.21874418]
[1765174838421,0.00923,91433.0,91431.0,0.21874418]
[1765174838564,0.00923,91433.0,91429.0,0.01093744]
[1765174838565,0.02665708,91432.0,91429.0,0.01093744]
[1765174839142,0.01572,91430.0,91428.0,0.01093756]
[1765174839544,0.01572,91429.0,91428.0,0.01093756]
[1765174839770,0.01572,91429.0,91425.0,0.01093792]
[1765174839979,0.02665744,91429.0,91426.0,0.0109378]
[1765174840186,0.01572,91429.0,91426.0,0.22969307]
[1765174840592,0.01572,91429.0,91428.0,0.002]
[1765174840800,0.01572,91429.0,91426.0,0.22969307]
[1765174841900,0.01572,91429.0,91428.0,0.21875136]
[1765174842318,0.03844,91429.0,91426.0,0.23269323]
[1765174842619,0.01516,91427.0,91426.0,0.23269323]
[1765174842970,0.01516,91427.0,91426.0,0.22969323]
[1765174843839,0.01516,91427.0,91426.0,0.23369323]
[1765174844014,0.0109372,91431.0,91428.0,0.01093756]
[1765174844219,0.02272,91430.0,91428.0,0.01093756]
[1765174844422,0.01516,91429.0,91428.0,0.01093756]
[1765174845460,0.01516,91429.0,91428.0,0.01293756]
[1765174845655,0.01516,91429.0,91428.0,0.01093756]
[1765174845860,0.08010292,91429.0,91426.0,0.22969323]
[1765174846042,0.02272,91429.0,91428.0,0.003]
[1765174846446,0.03788,91429.0,91428.0,0.003]
[1765174846650,0.04881744,91429.0,91426.0,0.0109378]
[1765174846859,0.01516,91427.0,91426.0,0.0109378]
[1765174847053,0.01516,91427.0,91426.0,0.0139378]
[1765174848246,0.01516,91427.0,91426.0,0.0109378]
[1765174848578,0.03788,91427.0,91426.0,0.0109378]
[1765174849172,0.03788,91427.0,91426.0,0.0149378]
[1765174849480,0.01516,91427.0,91426.0,0.0149378]
[1765174855315,0.02439,91427.0,91426.0,0.0149378]
[1765174855606,0.02439,91427.0,91426.0,0.004]
[1765174855818,0.04711,91427.0,91426.0,0.004]
[1765174856787,0.00923,91427.0,91426.0,0.004]
[1765174856990,0.02647,91433.0,91432.0,0.21874179]
[1765174858333,0.02647,91433.0,91432.0,0.21974179]
[1765174858562,0.02747,91433.0,91432.0,0.21974179]
[1765174859387,0.01023,91433.0,91432.0,0.21974179]
[1765174861641,0.2441294,91433.0,91432.0,0.001]
[1765174861836,0.02539,91433.0,91432.0,0.001]
[1765174862671,0.04811,91433.0,91432.0,0.001]
[1765174869756,0.06559361,91433.0,91432.0,0.001]
[1765174869976,0.08283361,91433.0,91432.0,0.001]
[1765174870892,0.06535,91433.0,91432.0,0.21974179]
[1765174871123,0.04263,91433.0,91432.0,0.21974179]
[1765174872221,0.06597,91433.0,91432.0,0.21974179]
[1765174873831,0.06597,91433.0,91432.0,0.001]
[1765174876937,0.04263,91433.0,91432.0,0.001]
[1765174879358,0.06597,91433.0,91432.0,0.001]
[1765174879584,0.08345361,91433.0,91432.0,0.001]
[1765174888490,0.06597,91433.0,91432.0,0.001]
[1765174891297,0.2847094,91433.0,91432.0,0.001]
[1765174891518,0.06597,91433.0,91432.0,0.001]
[1765174892340,0.14474914,91433.0,91432.0,0.001]
[1765174892547,0.17247824,91433.0,91432.0,0.001]
[1765174892981,0.0936991,91433.0,91432.0,0.001]
[1765174898298,0.08345361,91433.0,91432.0,0.001]
[1765174901276,0.15621318,91433.0,91432.0,0.001]
[1765174901592,0.17840917,91433.0,91432.0,0.001]
[1765174902372,0.17740917,91433.0,91432.0,0.001]
[1765174902600,0.21876093,91424.0,91423.0,0.50011699]
[1765174902742,0.23381093,91424.0,91423.0,0.50011699]
[1765174902937,0.25813093,91424.0,91423.0,0.50011699]
[1765174903763,0.03937,91424.0,91423.0,0.50011699]
[1765174903990,0.03937,91424.0,91423.0,0.50111699]
[1765174904191,0.03229,91424.0,91423.0,0.50111699]
[1765174904810,0.05661,91424.0,91423.0,0.50111699]
[1765174910323,0.05661,91424.0,91423.0,0.71988032]
[1765174910585,0.05661,91424.0,91423.0,0.50111699]
[1765174911329,0.05661,91424.0,91423.0,0.71988032]
[1765174911539,0.05661,91424.0,91423.0,0.50111699]
[1765174920616,0.05661,91424.0,91423.0,0.71988032]
[1765174922675,0.03229,91424.0,91423.0,0.71988032]
[1765174922802,0.00923,91425.0,91423.0,0.72138032]
[1765174923159,0.01018,91438.0,91437.0,0.21872983]
[1765174923160,0.02766361,91438.0,91437.0,0.21872983]
[1765174923311,0.02742,91438.0,91437.0,0.21872983]
[1765174923720,0.04318,91438.0,91437.0,0.21872983]
[1765174923942,0.06719,91438.0,91435.0,0.01093673]
[1765174924142,0.01576,91436.0,91435.0,0.01093673]
[1765174924542,0.03977,91436.0,91433.0,0.01093697]
[1765174924742,0.02499,91434.0,91433.0,0.01093697]
[1765174925180,0.07087621,91434.0,91433.0,0.01093697]
[1765174925941,0.00923,91434.0,91433.0,0.01093697]
[1765174926427,0.01323,91434.0,91433.0,0.01093697]
[1765174926834,0.01123,91434.0,91433.0,0.01093697]
[1765174927027,0.00923,91434.0,91433.0,0.01093697]
[1765174927231,0.05,91434.0,91433.0,0.01093697]
[1765174928392,0.06748361,91434.0,91433.0,0.01193697]
[1765174929033,0.06748361,91434.0,91433.0,0.001]
[1765174929237,0.10087794,91434.0,91433.0,0.001]
[1765174929391,0.18559692,91434.0,91433.0,0.001]
[1765174930140,0.0109378,91426.0,91423.0,0.50011699]
[1765174930363,0.01576,91424.0,91423.0,0.50011699]
[1765174930737,0.03977,91424.0,91423.0,0.71888032]
[1765174932391,0.04077,91424.0,91423.0,0.71888032]
[1765174938057,0.01676,91424.0,91423.0,0.71888032]
[1765174939644,0.034,91424.0,91423.0,0.71888032]
[1765174940302,0.04323,91424.0,91423.0,0.71888032]
[1765174949135,0.02599,91424.0,91423.0,0.71888032]
[1765174949336,0.04323,91424.0,91423.0,0.71888032]
[1765174953912,0.06775,91424.0,91423.0,0.71888032]
[1765174954385,0.08523361,91424.0,91423.0,0.50011699]
[1765174956886,0.06775,91424.0,91423.0,0.50011699]
[1765174959150,0.3671538,91424.0,91423.0,0.50011699]
[1765174959503,0.38934979,91424.0,91423.0,0.50011699]
[1765174959867,0.38834979,91424.0,91423.0,0.50011699]
[1765174960299,0.38934979,91424.0,91423.0,0.50011699]
[1765174960722,0.38834979,91424.0,91423.0,0.50011699]
[1765174961278,0.38934979,91424.0,91423.0,0.50011699]
[1765174961482,0.38834979,91424.0,91423.0,0.50011699]
[1765174961893,0.39634979,91424.0,91423.0,0.50011699]
[1765174962151,0.40034979,91424.0,91423.0,0.50011699]
[1765174964829,0.13428415,91424.0,91423.0,0.50011699]
[1765174965047,0.12003299,91424.0,91423.0,0.50011699]
[1765174965253,0.11203299,91424.0,91423.0,0.50011699]
[1765174965454,0.12203299,91424.0,91423.0,0.50011699]
[1765174965682,0.13927299,91424.0,91423.0,0.50011699]
[1765174965885,0.11203299,91424.0,91423.0,0.50011699]
[1765174966113,0.13427299,91424.0,91423.0,0.50011699]
[1765174966312,0.11703299,91424.0,91423.0,0.50011699]
[1765174966871,0.13427299,91424.0,91423.0,0.50011699]
[1765174967080,0.11703299,91424.0,91423.0,0.50011699]
[1765174967236,0.13427299,91424.0,91423.0,0.50011699]
[1765174967437,0.21879593,91424.0,91423.0,0.50011699]
[1765174967653,0.2290342,91424.0,91423.0,0.50011699]
[1765174967869,0.25123019,91424.0,91423.0,0.50011699]
[1765174971823,0.2512279,91424.0,91423.0,0.50011699]
[1765174972238,0.16670496,91424.0,91423.0,0.50011699]
[1765174972435,0.18418857,91424.0,91423.0,0.50011699]
[1765174973267,0.16199258,91424.0,91423.0,0.50011699]
[1765174978539,0.16694857,91424.0,91423.0,0.50011699]
[1765174978782,0.18418857,91424.0,91423.0,0.50011699]
[1765174979058,0.274062,91424.0,91423.0,0.50011699]
[1765174979288,0.25657839,91424.0,91423.0,0.50011699]
[1765174979486,0.25857839,91424.0,91423.0,0.50011699]
[1765174980097,0.25557839,91424.0,91423.0,0.50011699]
[1765174980231,0.16370496,91424.0,91423.0,0.50011699]
[1765174980430,0.18418857,91424.0,91423.0,0.50011699]
[1765174981882,0.14946496,91424.0,91423.0,0.50011699]
[1765174982089,0.16670496,91424.0,91423.0,0.50011699]
[1765174983011,0.14450897,91424.0,91423.0,0.50011699]
[1765174983376,0.12726897,91424.0,91423.0,0.50011699]
[1765174983560,0.14450897,91424.0,91423.0,0.50011699]
[1765174984635,0.13950897,91424.0,91423.0,0.50011699]
[1765174984839,0.14150897,91424.0,91423.0,0.50011699]
[1765174985158,0.14350897,91424.0,91423.0,0.50011699]
[1765174986846,0.12626897,91424.0,91423.0,0.50011699]
[1765174987052,0.14350897,91424.0,91423.0,0.50011699]
[1765174991085,0.14150897,91424.0,91423.0,0.50011699]
[1765174991494,0.14846496,91424.0,91423.0,0.50011699]
[1765174991695,0.16570496,91424.0,91423.0,0.50011699]
[1765174992137,0.14350897,91424.0,91423.0,0.50011699]
[1765174992335,0.14150897,91424.0,91423.0,0.50011699]
[1765174992657,0.12226897,91424.0,91423.0,0.50011699]
[1765174993044,0.12326897,91424.0,91423.0,0.50011699]
[1765174993243,0.12526897,91424.0,91423.0,0.50011699]
[1765174993541,0.14150897,91424.0,91423.0,0.50011699]
[1765174993744,0.14350897,91424.0,91423.0,0.50011699]
[1765174994333,0.16570496,91424.0,91423.0,0.50011699]
[1765174994530,0.12626897,91424.0,91423.0,0.50011699]
[1765174994860,0.16570496,91424.0,91423.0,0.50011699]
[1765174995258,0.14350897,91424.0,91423.0,0.50011699]
[1765174996303,0.14350897,91424.0,91423.0,0.71888032]
[1765174996520,0.12626897,91424.0,91423.0,0.71888032]
[1765174996720,0.06374598,91424.0,91423.0,0.71888032]
[1765174996923,0.08098598,91424.0,91423.0,0.71888032]
[1765174997082,0.07898598,91424.0,91423.0,0.71888032]
[1765174997284,0.06174598,91424.0,91423.0,0.71888032]
[1765174997506,0.07998598,91424.0,91423.0,0.71888032]
[1765174998325,0.07798598,91424.0,91423.0,0.71888032]
[1765174998502,0.07798598,91424.0,91423.0,0.50011699]
[1765174999910,0.09546959,91424.0,91423.0,0.50011699]
[1765175000121,0.07798598,91424.0,91423.0,0.50011699]
[1765175001493,0.09546959,91424.0,91423.0,0.50011699]
[1765175002371,0.07798598,91424.0,91423.0,0.50011699]
[1765175004159,0.07798598,91424.0,91423.0,0.00011699]
[1765175004901,0.07798598,91424.0,91423.0,0.21888032]
[1765175005093,0.06775,91424.0,91423.0,0.21888032]
[1765175005409,0.05051,91424.0,91423.0,0.21888032]
[1765175005621,0.06775,91424.0,91423.0,0.21888032]
[1765175006139,0.06675,91424.0,91423.0,0.21888032]
[1765175007739,0.06675,91424.0,91423.0,0.22188032]
[1765175008760,0.06675,91424.0,91423.0,0.00311699]
[1765175010114,0.08423361,91424.0,91423.0,0.00311699]
[1765175010318,0.06675,91424.0,91423.0,0.00311699]
[1765175011841,0.08423361,91424.0,91423.0,0.00311699]
[1765175012855,0.06675,91424.0,91423.0,0.00311699]
[1765175013286,0.16375164,91424.0,91423.0,0.00311699]
[1765175013909,0.08423361,91424.0,91423.0,0.00311699]
[1765175014113,0.08423361,91424.0,91423.0,0.00011699]
[1765175014309,0.06775,91424.0,91423.0,0.00111699]
[1765175020946,0.04323,91424.0,91423.0,0.00261699]
[1765175024330,0.02747,91424.0,91423.0,0.00261699]
[1765175024478,0.001,91424.0,91423.0,0.00261699]
[1765175025500,0.01755,91424.0,91423.0,0.00261699]
[1765175025746,0.04095,91424.0,91423.0,0.00261699]
[1765175025948,0.01755,91424.0,91423.0,0.00261699]
[1765175027627,0.04095,91424.0,91423.0,0.00261699]
[1765175027829,0.04095,91424.0,91423.0,0.00111699]
[1765175028154,0.05843361,91424.0,91423.0,0.00111699]
[1765175028778,0.0806296,91424.0,91423.0,0.00111699]
[1765175028927,0.14315259,91424.0,91423.0,0.00111699]
[1765175029475,0.19719955,91424.0,91423.0,0.00111699]
[1765175029635,0.1852543,91424.0,91423.0,0.00111699]
[1765175029823,0.20745029,91424.0,91423.0,0.00111699]
[1765175030424,0.20645029,91424.0,91423.0,0.00111699]
[1765175030672,0.20645029,91424.0,91423.0,0.00011699]
[1765175030852,0.20845029,91424.0,91423.0,0.00011699]
[1765175031082,0.15540333,91424.0,91423.0,0.00011699]
[1765175031282,0.36920827,91424.0,91423.0,0.00011699]
[1765175031581,0.11572373,91424.0,91423.0,0.00011699]
[1765175031760,0.07044074,91424.0,91423.0,0.00011699]
[1765175032027,0.06019,91424.0,91423.0,0.00011699]
[1765175032251,0.06019,91424.0,91423.0,0.21888032]
[1765175034026,0.06019,91424.0,91423.0,0.00011699]
[1765175039813,0.05621998,91424.0,91423.0,0.00011699]
[1765175041517,0.05621998,91424.0,91423.0,0.21888032]
[1765175043991,0.03897998,91424.0,91423.0,0.00011699]
[1765175044217,0.05621998,91424.0,91423.0,0.00011699]
[1765175049690,0.07370359,91424.0,91423.0,0.00011699]
[1765175049935,0.14647494,91424.0,91423.0,0.00011699]
[1765175050130,0.16867093,91424.0,91423.0,0.00011699]
[1765175051321,0.16767093,91424.0,91423.0,0.00011699]
[1765175051530,0.17467093,91424.0,91423.0,0.00011699]
[1765175051724,0.17267093,91424.0,91423.0,0.00011699]
[1765175051921,0.26808277,91424.0,91423.0,0.00011699]
[1765175052120,0.25059916,91424.0,91423.0,0.00011699]
[1765175052544,0.24759916,91424.0,91423.0,0.00011699]
[1765175052747,0.25159916,91424.0,91423.0,0.00011699]
[1765175063055,0.15918732,91424.0,91423.0,0.00011699]
[1765175063247,0.17667093,91424.0,91423.0,0.00011699]
[1765175064777,0.49967093,91424.0,91423.0,0.00011699]
[1765175064946,0.50579842,91424.0,91423.0,0.00011699]
[1765175066504,0.53532303,91424.0,91423.0,0.00011699]
[1765175066722,0.64502809,91424.0,91423.0,0.00011699]
[1765175066955,0.65596996,91424.0,91423.0,0.00011699]
[1765175067352,0.64502809,91424.0,91423.0,0.00011699]
[1765175067635,0.61550348,91424.0,91423.0,0.00011699]
[1765175070090,0.64502809,91424.0,91423.0,0.00011699]
[1765175070842,0.61550348,91424.0,91423.0,0.00011699]
[1765175071371,0.64502809,91424.0,91423.0,0.00011699]
[1765175071741,0.61550348,91424.0,91423.0,0.00011699]
[1765175074376,0.64502809,91424.0,91423.0,0.00011699]
[1765175074739,0.61550348,91424.0,91423.0,0.00011699]
[1765175074963,0.64498648,91424.0,91423.0,0.00011699]
[1765175075374,0.61550348,91424.0,91423.0,0.00011699]
[1765175075812,0.01094127,91397.0,91393.0,0.01094175]
[1765175075953,0.04661621,91394.0,91393.0,0.01283187]
[1765175076159,0.04661621,91394.0,91393.0,0.00189012]
[1765175076376,0.06961621,91394.0,91393.0,0.00189012]
[1765175076815,0.04774,91394.0,91393.0,0.00189012]
[1765175077017,0.02474,91394.0,91393.0,0.00289012]
[1765175077213,0.04774,91394.0,91393.0,0.00289012]
[1765175077431,0.04774,91394.0,91393.0,0.00189012]
[1765175077852,0.02474,91394.0,91393.0,0.22072526]
[1765175078253,0.02474,91394.0,91393.0,0.22572526]
[1765175078830,0.02474,91394.0,91393.0,0.22672526]
[1765175082733,0.00822,91394.0,91393.0,0.22672526]
[1765175090798,0.02434,91394.0,91393.0,0.22672526]
[1765175091211,0.00822,91394.0,91393.0,0.22672526]
[1765175095988,0.02434,91394.0,91393.0,0.22672526]
[1765175102025,0.00822,91407.0,91404.0,0.22974717]
[1765175102140,0.00822,91407.0,91405.0,0.21880641]
[1765175102346,0.00822,91407.0,91405.0,0.22030641]
[1765175102548,0.00822,91417.0,91416.0,0.21878008]
[1765175102756,0.00822,91417.0,91416.0,0.22028008]
[1765175103505,0.04889,91417.0,91416.0,0.22028008]
[1765175104063,0.04889,91417.0,91416.0,0.22128008]
[1765175104398,0.04889,91417.0,91416.0,0.0025]
[1765175104821,0.04889,91417.0,91416.0,0.22128008]
[1765175105134,0.04889,91417.0,91416.0,0.0025]
[1765175112940,0.04889,91417.0,91416.0,0.22128008]
[1765175113318,0.04889,91417.0,91416.0,0.22028008]
[1765175113945,0.02443,91417.0,91416.0,0.22028008]
[1765175114147,0.04903,91417.0,91416.0,0.22028008]
[1765175114546,0.04903,91417.0,91416.0,0.0015]
[1765175114751,0.05103,91417.0,91416.0,0.0015]
[1765175114995,0.04903,91417.0,91416.0,0.0015]
[1765175115209,0.05103,91417.0,91416.0,0.0015]
[1765175115568,0.02643,91417.0,91416.0,0.0015]
[1765175116118,0.05103,91417.0,91416.0,0.0015]
[1765175118088,0.05103,91417.0,91416.0,0.22028008]
[1765175119847,0.02643,91417.0,91416.0,0.22028008]
[1765175120055,0.05103,91417.0,91416.0,0.22028008]
[1765175125721,0.02643,91417.0,91416.0,0.22028008]
[1765175126020,0.05103,91417.0,91416.0,0.22028008]
[1765175129019,0.05103,91417.0,91416.0,0.0015]
[1765175130098,0.05103,91417.0,91416.0,0.22028008]
[1765175131143,0.05103,91417.0,91416.0,0.0015]
[1765175132709,0.22971908,91416.0,91411.0,0.0109396]
[1765175132888,0.21879204,91411.0,91404.0,0.01094044]
[1765175133102,0.02187621,91405.0,91403.0,0.01093936]
[1765175133277,0.02187621,91405.0,91402.0,0.01094067]
[1765175133598,0.01644,91403.0,91402.0,0.01094067]
[1765175134005,0.03288,91403.0,91402.0,0.01244067]
[1765175134772,0.01644,91403.0,91402.0,0.01244067]
[1765175135563,0.01744,91403.0,91402.0,0.01244067]
[1765175143757,0.001,91403.0,91402.0,0.05308067]
[1765175143948,0.001,91403.0,91402.0,0.07740932]
[1765175144156,0.001,91403.0,91402.0,0.42006279]
[1765175145051,0.00822,91424.0,91422.0,0.21876572]
[1765175146322,0.00822,91424.0,91422.0,0.21976572]
[1765175146839,0.00822,91424.0,91422.0,0.22076572]
[1765175148622,0.02187621,91423.0,91422.0,0.22076572]
[1765175149399,0.02187621,91423.0,91422.0,0.21976572]
[1765175149603,0.02187621,91423.0,91422.0,0.21876572]
[1765175149802,0.02187621,91423.0,91422.0,0.21976572]
[1765175149964,0.02187621,91423.0,91422.0,0.22076572]
[1765175151648,0.03691621,91423.0,91422.0,0.22076572]
[1765175153662,0.02187621,91423.0,91422.0,0.22076572]
[1765175153870,0.00822,91432.0,91431.0,0.21874418]
[1765175154936,0.00922,91432.0,91431.0,0.21874418]
[1765175156073,0.01122,91432.0,91431.0,0.21874418]
[1765175158564,0.003,91432.0,91431.0,0.26088418]
[1765175158768,0.003,91432.0,91431.0,0.24212039]
[1765175158934,0.003,91432.0,91431.0,0.22024418]
[1765175159364,0.002,91432.0,91431.0,0.22024418]
[1765175159555,0.002,91432.0,91431.0,0.22124418]
[1765175159936,0.00822,91438.0,91437.0,0.21872983]
[1765175160302,0.02326,91438.0,91437.0,0.21872983]
[1765175161335,0.02326,91438.0,91437.0,0.21972983]
[1765175162456,0.02326,91438.0,91437.0,0.22072983]
[1765175164280,0.00822,91445.0,91444.0,0.21871309]
[1765175164675,0.04062,91445.0,91444.0,0.21871309]
[1765175165468,0.00822,91451.0,91449.0,0.21870113]
[1765175166101,0.00822,91451.0,91449.0,0.22020113]
[1765175166715,0.01022,91451.0,91449.0,0.22020113]
[1765175166923,0.00822,91451.0,91449.0,0.22020113]
[1765175167145,0.00922,91451.0,91449.0,0.22020113]
[1765175167345,0.00922,91451.0,91449.0,0.0015]
[1765175167701,0.01596,91450.0,91449.0,0.0015]
[1765175168108,0.23465874,91450.0,91449.0,0.0015]
[1765175168960,0.01093541,91446.0,91441.0,0.22965627]
[1765175169135,0.00822,91443.0,91441.0,0.22965627]
[1765175169539,0.01093589,91442.0,91437.0,0.01093649]
[1765175169756,0.01093589,91442.0,91436.0,0.2412888]
[1765175169757,0.01093601,91441.0,91438.0,0.01093637]
[1765175169984,0.01093589,91442.0,91438.0,0.01093637]
[1765175170163,0.01596,91439.0,91438.0,0.01093637]
[1765175170376,0.01596,91439.0,91437.0,0.01093649]
[1765175170614,0.01596,91438.0,91435.0,0.33393673]
[1765175170763,0.02187621,91440.0,91437.0,0.01093649]
[1765175170971,0.02187621,91440.0,91438.0,0.21872645]
[1765175171738,0.01915481,91451.0,91448.0,0.01093517]
[1765175171954,0.00822,91451.0,91449.0,0.21870113]
[1765175172156,0.02187621,91454.0,91453.0,0.21869156]
[1765175172398,0.00822,91457.0,91456.0,0.21868439]
[1765175172795,0.02425,91457.0,91454.0,0.22962362]
[1765175173008,0.02187621,91455.0,91454.0,0.22962362]
[1765175173765,0.01122,91457.0,91456.0,0.21868439]
[1765175173976,0.01122,91457.0,91454.0,0.22962362]
[1765175174152,0.02187621,91455.0,91454.0,0.22962362]
[1765175174316,0.02287621,91455.0,91454.0,0.22962362]
[1765175174715,0.02187621,91455.0,91454.0,0.22962362]
[1765175175138,0.06528054,91455.0,91451.0,0.01093481]
[1765175175482,0.01603,91452.0,91451.0,0.01093481]
[1765175175663,0.01603,91452.0,91448.0,0.01093517]
[1765175175839,0.01603,91449.0,91445.0,0.01093553]
[1765175176048,0.01093493,91450.0,91443.0,0.22965079]
[1765175176049,0.02425,91444.0,91443.0,0.01093577]
[1765175176236,0.02425,91444.0,91441.0,0.01093601]
[1765175176436,0.01603,91442.0,91441.0,0.01093601]
[1765175176652,0.01603,91442.0,91439.0,0.01093625]
[1765175176868,0.01603,91440.0,91439.0,0.01093625]
[1765175178094,0.01603,91440.0,91439.0,0.01293625]
[1765175178683,0.00822,91444.0,91443.0,0.21871548]
[1765175181110,0.02187621,91455.0,91453.0,0.21869156]
[1765175182024,0.02187621,91469.0,91467.0,0.21865809]
[1765175182233,0.02187621,91469.0,91466.0,0.01093302]
[1765175182583,0.02187621,91469.0,91466.0,0.22959219]
[1765175182792,0.02187621,91469.0,91467.0,0.21865585]
[1765175183231,0.02387621,91469.0,91467.0,0.21865585]
[1765175183432,0.02487621,91469.0,91467.0,0.21865585]
[1765175184016,0.02387621,91469.0,91467.0,0.21865585]
[1765175184421,0.02287621,91469.0,91467.0,0.21865585]
[1765175184894,0.02487621,91469.0,91467.0,0.21865585]
[1765175185863,0.01603,91468.0,91467.0,0.21865585]
[1765175186910,0.01703,91468.0,91467.0,0.21865585]
[1765175187803,0.01903,91468.0,91467.0,0.21865585]
[1765175188102,0.01903,91468.0,91466.0,0.22959219]
[1765175188302,0.01603,91467.0,91466.0,0.01093302]
[1765175188506,0.01093302,91466.0,91460.0,0.01093374]
[1765175188710,0.02425,91461.0,91460.0,0.01093374]
[1765175189110,0.04069,91461.0,91460.0,0.01093374]
[1765175189366,0.02425,91461.0,91460.0,0.01093374]
[1765175189762,0.00822,91461.0,91460.0,0.01093374]
[1765175189965,0.00822,91461.0,91460.0,0.01193374]
[1765175190880,0.00822,91461.0,91460.0,0.01293374]
[1765175198564,0.02425,91461.0,91460.0,0.01293374]
[1765175206070,0.00822,91461.0,91460.0,0.01293374]
[1765175206422,0.02187621,91469.0,91467.0,0.21865809]
[1765175206827,0.01619,91468.0,91467.0,0.21865809]
[1765175208047,0.01819,91468.0,91467.0,0.21865809]
[1765175208455,0.01919,91468.0,91467.0,0.21865809]
[1765175209153,0.003,91468.0,91467.0,0.21865809]
[1765175209781,0.003,91468.0,91467.0,0.617904]
[1765175210006,0.003,91468.0,91467.0,0.63978021]
[1765175210576,0.002,91468.0,91467.0,0.63978021]
[1765175210983,0.00023404,91475.0,91474.0,0.21864136]
[1765175211118,0.00023404,91475.0,91474.0,0.23601136]
[1765175211318,0.00023404,91475.0,91474.0,0.26061136]
[1765175211705,0.00023404,91475.0,91474.0,0.28248757]
[1765175212115,0.00023404,91475.0,91474.0,0.25788757]
[1765175212771,0.00023404,91475.0,91474.0,0.24201757]
[1765175213200,0.00123404,91475.0,91474.0,0.24201757]
[1765175217919,0.00123404,91475.0,91474.0,0.28248757]
[1765175218907,0.00123404,91475.0,91474.0,0.24201757]
[1765175221158,0.00123404,91475.0,91474.0,0.24201757]
[1765175221692,0.00123404,91475.0,91474.0,0.62759348]
[1765175221869,0.001,91475.0,91474.0,0.62759348]
[1765175222374,0.001,91475.0,91474.0,0.60548757]
[1765175222957,0.0004,91480.0,91479.0,0.21862941]
[1765175223535,0.0004,91480.0,91479.0,0.22300625]
[1765175224105,0.0004,91480.0,91479.0,0.23986625]
[1765175224303,0.0004,91480.0,91479.0,0.28581216]
[1765175224509,0.0004,91480.0,91479.0,0.28781216]
[1765175225099,0.0004,91480.0,91479.0,0.22750625]
[1765175225504,0.01569,91480.0,91479.0,0.22750625]
[1765175226021,0.01569,91480.0,91479.0,0.22650625]
[1765175226200,0.01569,91480.0,91479.0,0.22450625]
[1765175226629,0.01669,91480.0,91479.0,0.22450625]
[1765175227018,0.0014,91480.0,91479.0,0.22450625]
[1765175228661,0.0014,91480.0,91479.0,0.26370625]
[1765175228902,0.00178029,91480.0,91479.0,0.26370625]
[1765175229861,0.00078029,91480.0,91479.0,0.26470625]
[1765175230121,0.00078029,91480.0,91479.0,0.26570625]
[1765175232055,0.00078029,91480.0,91479.0,0.22650625]
[1765175234821,0.00078029,91480.0,91479.0,0.22500625]
[1765175234822,0.01626029,91480.0,91479.0,0.22500625]
[1765175235221,0.00078029,91480.0,91479.0,0.22500625]
[1765175235623,0.00078029,91480.0,91479.0,0.22400625]
[1765175235839,0.00078029,91480.0,91479.0,0.22300625]
[1765175237599,0.03270029,91480.0,91479.0,0.22300625]
[1765175238244,0.01626029,91480.0,91479.0,0.22300625]
[1765175238724,0.03270029,91480.0,91479.0,0.00437684]
[1765175238931,0.03270029,91480.0,91479.0,0.22300625]
[1765175239126,0.00078029,91480.0,91479.0,0.22300625]
[1765175239331,0.00178029,91480.0,91479.0,0.22300625]
[1765175250058,0.00178029,91480.0,91479.0,0.24029625]
[1765175250271,0.00178029,91480.0,91479.0,0.26464625]
[1765175250480,0.00178029,91480.0,91479.0,0.22450625]
[1765175251047,0.00078029,91480.0,91479.0,0.22550625]
[1765175251905,0.00078029,91480.0,91479.0,0.22650625]
[1765175253921,0.03270029,91480.0,91479.0,0.22650625]
[1765175255114,0.03270029,91480.0,91479.0,0.22550625]
[1765175255769,0.03270029,91480.0,91479.0,0.22650625]
[1765175256224,0.00078029,91480.0,91479.0,0.22550625]
[1765175259533,0.01626029,91480.0,91479.0,0.22550625]
[1765175259742,0.01626029,91480.0,91479.0,0.00537684]
[1765175259940,0.01626029,91480.0,91479.0,0.001]
[1765175259941,0.03270029,91480.0,91479.0,0.001]
[1765175260744,0.03270029,91480.0,91472.0,0.0109323]
[1765175260745,0.01093182,91476.0,91472.0,0.0109323]
[1765175260948,0.01548,91473.0,91472.0,0.0109323]
[1765175262635,0.01548,91473.0,91472.0,0.0119323]
[1765175263238,0.01548,91473.0,91472.0,0.001]
[1765175263442,0.03192,91473.0,91472.0,0.001]
[1765175263654,0.03192,91473.0,91472.0,0.002]
[1765175265308,0.03192,91473.0,91472.0,0.22064614]
[1765175266255,0.03192,91473.0,91472.0,0.002]
[1765175267089,0.31308674,91473.0,91472.0,0.002]
[1765175267857,0.01093254,91470.0,91467.0,0.0109329]
[1765175268056,0.03009621,91468.0,91467.0,0.0109329]
[1765175268258,0.04515621,91468.0,91464.0,0.2295984]
[1765175269308,0.05608899,91468.0,91465.0,0.01093314]
[1765175269501,0.05608899,91468.0,91464.0,0.2295984]
[1765175269675,0.01644,91467.0,91466.0,0.21866015]
[1765175270229,0.01506,91467.0,91465.0,0.22959449]
[1765175270437,0.01506,91466.0,91465.0,0.22959449]
[1765175271061,0.0315,91466.0,91465.0,0.22959449]
[1765175271526,0.0315,91466.0,91465.0,0.23059449]
[1765175271725,0.0315,91466.0,91465.0,0.22959449]
[1765175272137,0.0315,91466.0,91465.0,0.23159449]
[1765175272372,0.0315,91466.0,91465.0,0.01293314]
[1765175273285,0.0315,91466.0,91465.0,0.01193314]
[1765175273441,0.01506,91466.0,91465.0,0.01193314]
[1765175273657,0.03009621,91468.0,91466.0,0.21866048]
[1765175274200,0.01506,91467.0,91466.0,0.21866048]
[1765175275349,0.0315,91467.0,91465.0,0.01093314]
[1765175275553,0.01506,91466.0,91465.0,0.01093314]